[Event "Slovakian ECo-C Extraliga 2024-25"]
[Site "Slovakia"]
[Date "2024.11.24"]
[Round "2.3"]
[White "Zwardon, Vojtech"]
[Black "Babula, Vlastimil"]
[Result "1/2-1/2"]
[Annotator "RC"]
[ECO "A28"]
[WhiteElo "2446"]
[BlackElo "2496"]
[PlyCount "128"]
[EventDate "2024.09.12"]
[EventType "team-tourn"]
[EventCountry "SVK"]
[SourceTitle "playchess.com"]
[Source "ChessBase"]
[SourceQuality "1"]
[TimeControl "5400+30"]

1. c4 {[%emt 0:00:01]} Nf6 {[%emt 0:00:08]} 2. Nc3 {[%emt 0:00:02]} e5 {[%emt 0:00:06]} 3. Nf3 {[%emt 0:00:02]} Nc6 {[%emt 0:00:07]} 4. Qc2 {[%emt 0:00:01]} Bc5 {[%emt 0:15:39]} 5. e3 {[%emt 0:02:08]} d6 {[%emt 0:00:28]} 6. Na4 {[%emt 0:00:31]} O-O {[%emt 0:01:14]} 7. a3 {[%emt 0:01:23]} a5 {[%emt 0:00:29]} 8. Nxc5 {[%emt 0:00:04]} dxc5 {[%emt 0:00:05]} 9. b3 {[%emt 0:02:31]} Re8 {[%emt 0:01:42]} 10. d3 {[%emt 0:00:28]} Nd7 {[%emt 0:07:29]} 11. Bb2 {[%emt 0:00:39]} Nf8 {[%emt 0:01:33]} 12. Be2 {[%emt 0:02:19]} Ra6 {[%emt 0:15:14]} 13. Nd2 {[%emt 0:00:21]} Bf5 {[%emt 0:03:46]} 14. Ne4 {[%emt 0:03:27]} Bxe4 {[%emt 0:01:11]} 15. dxe4 {[%emt 0:00:03]} Nb8 {[%emt 0:03:11]} 16. Rd1 {[%emt 0:00:57]} Rd6 {[%emt 0:00:50]} 17. Rd5 {[%emt 0:00:57]} f6 {[%emt 0:01:53]} 18. Qd2 {[%emt 0:00:22]} Nc6 {[%emt 0:02:28]} 19. O-O {[%emt 0:00:13]} Qe7 {[%emt 0:00:20]} 20. Bg4 {[%emt 0:04:38]} Red8 {[%emt 0:02:38]} 21. Rd1 {[%emt 0:01:29]} b6 {[%emt 0:01:51]} 22. Qe2 {[%emt 0:04:34]} Nb8 {[%emt 0:04:23]} 23. h4 {[%emt 0:05:02]} c6 {[%emt 0:02:46]} 24. R5d3 {[%emt 0:00:19]} Qc7 {[%emt 0:00:19]} 25. h5 {[%emt 0:00:57]} Kf7 {[%emt 0:01:31]} 26. g3 {[%emt 0:01:28]} Rxd3 {[%emt 0:00:29]} 27. Rxd3 {[%emt 0:00:01]} Rxd3 {[%emt 0:00:16]} 28. Qxd3 {[%emt 0:00:03]} Ke7 {[%emt 0:00:14]} 29. f4 {[%emt 0:03:18]} Qd6 {[%emt 0:01:05]} 30. Qc3 {[%emt 0:00:42]} Nbd7 {[%emt 0:00:18]} 31. Kf2 {[%emt 0:00:30]} Kd8 {[%emt 0:01:33]} 32. Ke2 {[%emt 0:00:36]} Kc7 {[%emt 0:00:26]} 33. Qe1 {[%emt 0:00:47]} Qe7 {[%emt 0:04:22]} 34. Kd3 {[%emt 0:01:06]} Qd6+ {[%emt 0:00:07]} 35. Kc2 {[%emt 0:02:44]} Qe7 {[%emt 0:00:04]} 36. Bc3 {[%emt 0:01:57]} Qd6 {[%emt 0:01:13]} 37. Qh1 {[%emt 0:02:07]} Qe7 {[%emt 0:00:12]} 38. Bf5 {[%emt 0:01:58]} Qf7 {[%emt 0:07:03]} 39. Kd3 {[%emt 0:06:53]} Qe7 {[%emt 0:00:33]} 40. Qf3 {[%emt 0:00:44]} Qf7 {[%emt 0:05:50]} 41. Bh3 {[%emt 0:01:59]} Qe7 {[%emt 0:00:11]} 42. Kc2 {[%emt 0:00:11]} Kd8 {[%emt 0:00:39]} 43. Bf5 {[%emt 0:01:58]} Qf7 {[%emt 0:00:56]} 44. Bxd7 {[%emt 0:00:35]} Nxd7 {[%emt 0:00:13]} 45. fxe5 {[%emt 0:00:07]} a4 {[%emt 0:00:12]} 46. exf6 {[%emt 0:00:31]} axb3+ {[%emt 0:00:16]} 47. Kxb3 {[%emt 0:00:15]} gxf6 {[%emt 0:00:08]} 48. e5 {[%emt 0:01:27]} b5 {[%emt 0:01:14]} 49. Qf4 {[%emt 0:00:11]} Qxh5 {[%emt 0:04:27]} 50. e6 {[%emt 0:08:05]} bxc4+ {[%emt 0:01:58]} 51. Qxc4 {[%emt 0:02:08]} Ne5 {[%emt 0:00:29]} 52. Bxe5 {[%emt 0:03:24]} Qxe5 {[%emt 0:00:07]} 53. Qd3+ {[%emt 0:07:20]} Kc7 {[%emt 0:01:42]} 54. Qxh7+ {[%emt 0:05:01]} Kb6 {[%emt 0:00:06]} 55. Qd3 {[%emt 0:01:09]} Qxe6+ {[%emt 0:00:23]} 56. Ka4 {[%emt 0:00:34]} Qg4+ {[%emt 0:04:19]} 57. e4 {[%emt 0:00:06]} f5 {[%emt 0:00:14]} 58. Qd8+ {[%emt 0:00:15]} Ka6 {[%emt 0:02:33]} 59. Qa5+ {[%emt 0:02:20]} Kb7 {[%emt 0:00:04]} 60. Qxc5 {[%emt 0:00:06]} fxe4 {[%emt 0:00:06]} 61. Ka5 {[%emt 0:00:06]} Qxg3 {[%emt 0:01:15]} 62. Qb6+ {[%emt 0:02:10]} Ka8 {[%emt 0:00:35]} 63. Qxc6+ {[%emt 0:00:23]} Kb8 {[%emt 0:00:08]} 64. Qe8+ {[%emt 0:00:50]} Ka7 {[%emt 0:00:35]} 1/2-1/2

[Event "Slovakian ECo-C Extraliga 2024-25"]
[Site "Slovakia"]
[Date "2024.11.24"]
[Round "2.3"]
[White "Stachowiak, Kamil"]
[Black "Kusa, Jakub"]
[Result "1/2-1/2"]
[Annotator "TA"]
[ECO "D02"]
[WhiteElo "2417"]
[BlackElo "2401"]
[PlyCount "27"]
[EventDate "2024.09.12"]
[EventType "team-tourn"]
[EventCountry "SVK"]
[SourceTitle "playchess.com"]
[Source "ChessBase"]
[SourceQuality "1"]
[TimeControl "5400+30"]

{[%evp 9,27,24,34,25,27,18,30,7,0,0,0,0,14,0,12,12,7,7,13,17]} 1. d4 {[%emt 0:00:02]} d5 {[%emt 0:00:10]} 2. Nf3 {[%emt 0:00:08]} e6 {[%emt 0:00:13]} 3. c4 {[%emt 0:00:24]} a6 {[%emt 0:00:33]} 4. cxd5 {[%emt 0:01:15]} exd5 {[%emt 0:00:11]} 5. Nc3 {[%emt 0:00:07]} h6 {[%emt 0:00:18]} 6. Bf4 {[%emt 0:01:30]} Nf6 {[%emt 0:00:09]} 7. e3 {[%emt 0:00:34]} Bd6 {[%emt 0:00:17]} 8. Bg3 {[%emt 0:00:35]} Bxg3 {[%emt 0:02:31]} 9. hxg3 {[%emt 0:00:07]} O-O {[%emt 0:00:59]} 10. Bd3 {[%emt 0:01:11]} Re8 {[%emt 0:01:28]} 11. Qc2 {[%emt 0:03:18]} Qe7 {[%emt 0:02:40]} 12. O-O {[%emt 0:02:20]} c6 {[%emt 0:01:51]} 13. Rfe1 {[%emt 0:16:20]} Be6 {[%emt 0:00:43]} 14. Rac1 {[%emt 0:18:15]} 1/2-1/2

[Event "Slovakian ECo-C Extraliga 2024-25"]
[Site "Slovakia"]
[Date "2024.11.24"]
[Round "2.3"]
[White "Stohl, Igor"]
[Black "Lipka, Juraj"]
[Result "1/2-1/2"]
[Annotator "TA"]
[ECO "E04"]
[WhiteElo "2412"]
[BlackElo "2350"]
[PlyCount "29"]
[EventDate "2024.09.12"]
[EventType "team-tourn"]
[EventCountry "SVK"]
[SourceTitle "playchess.com"]
[Source "ChessBase"]
[SourceQuality "1"]
[TimeControl "5400+30"]

{[%evp 11,29,22,28,13,27,25,12,15,10,9,16,26,17,8,98,108,64,64,57,46]} 1. d4 {[%emt 0:00:12]} d5 {[%emt 0:00:03][%cal Bd7d5,Bd5c4][%mdl 32]} 2. Nf3 {[%emt 0:00:13]} Nf6 {[%emt 0:00:05]} 3. c4 {[%emt 0:00:33]} e6 {[%emt 0:00:06]} 4. g3 {[%emt 0:00:44]} dxc4 {[%emt 0:00:06]} 5. Bg2 {[%emt 0:00:08]} Bb4+ {[%emt 0:00:10]} 6. Bd2 {[%emt 0:00:04]} a5 {[%emt 0:00:14]} 7. Qc2 {[%emt 0:00:49]} b6 {[%emt 0:00:14]} 8. Bxb4 {[%emt 0:07:36]} axb4 {[%emt 0:00:06]} 9. Qxc4 {[%emt 0:00:07]} Qd6 {[%emt 0:01:58]} 10. O-O {[%emt 0:03:10]} Ba6 {[%emt 0:04:29]} 11. Qc2 {[%emt 0:01:05]} O-O {[%emt 0:10:43]} 12. Rc1 {[%emt 0:07:25][%cal Oe2e4]} b3 {[%emt 0:11:07]} 13. Qxb3 $16 {[%emt 0:06:49]} (13. axb3 Bd3 14. Rxa8 Bxc2 15. Rxc2 c5 $14) 13... Bxe2 {[%emt 0:00:11]} 14. Nc3 {[%emt 0:00:08]} Ba6 $1 {[%emt 0:00:54]} 15. Ng5 {[%emt 0:10:13]} 1/2-1/2

[Event "Slovakian ECo-C Extraliga 2024-25"]
[Site "Slovakia"]
[Date "2024.11.24"]
[Round "2.3"]
[White "Bokros, Albert"]
[Black "Rohacek, Miroslav"]
[Result "1-0"]
[Annotator "TA"]
[ECO "B54"]
[WhiteElo "2396"]
[BlackElo "2245"]
[PlyCount "71"]
[EventDate "2024.09.12"]
[EventType "team-tourn"]
[EventCountry "SVK"]
[SourceTitle "playchess.com"]
[Source "ChessBase"]
[SourceQuality "1"]
[TimeControl "5400+30"]

{[%evp 11,71,18,36,-30,-24,-27,-11,-19,0,0,0,-12,43,50,50,41,195,168,173,171,172,166,168,153,189,193,200,182,189,199,179,197,188,174,274,113,116,112,161,149,188,184,183,187,250,248,218,214,297,232,229,214,225,222,248,216,230,235,330,339,342,340]} 1. e4 {[%emt 0:00:05]} c5 {[%emt 0:01:00]} 2. Nf3 {[%emt 0:00:07]} d6 {[%emt 0:00:09]} 3. d4 {[%emt 0:00:07]} cxd4 {[%emt 0:00:18]} 4. Nxd4 {[%emt 0:00:13]} Nf6 {[%emt 0:00:35]} 5. f3 {[%emt 0:00:24]} e5 {[%emt 0:01:55]} 6. Nb3 {[%emt 0:00:38]} d5 {[%emt 0:01:37]} 7. exd5 {[%emt 0:00:35]} (7. Bg5 $1 $14) 7... Nxd5 $11 {[%emt 0:02:33]} 8. Bb5+ {[%emt 0:00:12]} Nc6 {[%emt 0:01:55]} 9. Bd2 {[%emt 0:00:15][%cal Bc1d2,Bd2a5,Ba5c3,Bc3e5][%mdl 32]} Be7 {[%emt 0:06:05]} 10. Ba5 {[%emt 0:01:11]} Qd6 {[%emt 0:10:59]} 11. Nc3 {[%emt 0:00:58]} Nxc3 {[%emt 0:05:37]} ({Black should try} 11... Be6 $11) 12. Qxd6 $14 {[%emt 0:10:55]} Bxd6 {[%emt 0:00:10]} 13. Bxc3 {[%emt 0:00:06]} Kd8 $2 {[%emt 0:25:04]} (13... Bc7 $14) 14. O-O-O {[%emt 0:09:42]} Kc7 {[%emt 0:01:51]} 15. Bxc6 $1 {[%emt 0:00:20]} Kxc6 {[%emt 0:03:47]} 16. Na5+ {[%emt 0:00:27][%cal Bb3a5,Ba5c4,Bc4e5][%mdl 32]} Kc7 {[%emt 0:00:11]} 17. Nc4 $1 $36 {[%emt 0:00:08][%csl LRd6,LRe5][%mdl 2048] Prevents f6. Keeping Black busy.} Bc5 {[%emt 0:00:15]} 18. Bxe5+ {[%emt 0:10:38]} Kc6 {[%emt 0:00:32]} 19. Bxg7 {[%emt 0:07:09]} Rg8 {[%emt 0:01:49] [#]} 20. Bd4 $1 {[%emt 0:07:56]} Bxd4 {[%emt 0:03:48]} 21. Rxd4 {[%emt 0:01:21]} Rxg2 {[%emt 0:00:22]} 22. Ne5+ {[%emt 0:03:43]} Kc5 {[%emt 0:02:34]} (22... Kb6 $142 23. Rd8 (23. Nxf7 Bf5 $16) 23... a6 24. Nxf7 Ka7) 23. Rhd1 {[%emt 0:05:30]} (23. Rd8 $18) 23... Be6 $16 {[%emt 0:03:30]} 24. Rh4 {[%emt 0:05:12]} Re8 {[%emt 0:07:12]} (24... Kb6 $16) 25. b3 $18 {[%emt 0:05:00]} (25. Rxh7 Bf5 26. b4+ (26. Rxf7 $2 {too greedy.} Rxe5 27. f4 Rxc2+ 28. Kb1 Rd2+ 29. Kc1 Rxd1+ 30. Kxd1 Bg4+ 31. Kc1 Re1+ 32. Kd2 Re2+ 33. Kc3 Bf3 $19) 26... Kb6 27. Nc4+ (27. Rxf7 Rxc2+ 28. Kb1 Rd2+ 29. Rxf5 Rxd1+ 30. Kc2 Re1 $17) 27... Kc6 28. Rh6+ (28. Rxf7 Rxc2+ 29. Kb1 Rd2+ 30. Kc1 Rc2+ 31. Kb1 Rxc4+ 32. Rxf5 Rxb4+ 33. Kc1 Rc4+ 34. Kb2 Re2+ 35. Kb3 b5 $11) 28... Re6 29. Rxe6+ Bxe6 30. Rd6+ Kc7 $14) 25... b5 {[%emt 0:03:50]} 26. Nd3+ {[%emt 0:01:59]} Kb6 {[%emt 0:01:40]} 27. Rxh7 {[%emt 0:01:50]} Re7 {[%emt 0:06:14]} (27... Rd8 28. Rh6 Rd4) 28. Rh6 {[%emt 0:04:22] Nf4 is the strong threat.} Kc7 {[%emt 0:01:40]} 29. Rh5 {[%emt 0:05:19]} a6 {[%emt 0:03:29]} 30. Rd2 {[%emt 0:03:50]} Rg1+ {[%emt 0:01:35] [#]} 31. Kb2 $1 {[%emt 0:00:13]} Rd7 {[%emt 0:00:07]} 32. Re2 {[%emt 0:03:40]} Bd5 {[%emt 0:01:53]} 33. Rf2 {[%emt 0:02:59]} Rd6 {[%emt 0:00:33]} 34. Nc5 {[%emt 0:02:21]} a5 {[%emt 0:01:30]} (34... Be6 {was necessary.} 35. a3 Rg6) 35. Ne4 {[%emt 0:03:07]} Rd8 {[%emt 0:00:47]} 36. Nc3 {[%emt 0:01:01][%csl LRb5,LRd5]} 1-0

[Event "Slovakian ECo-C Extraliga 2024-25"]
[Site "Slovakia"]
[Date "2024.11.24"]
[Round "2.3"]
[White "Ongut, Tamas Gunes"]
[Black "Turcan, Richard"]
[Result "0-1"]
[Annotator "TA"]
[ECO "E24"]
[WhiteElo "2215"]
[BlackElo "2348"]
[PlyCount "60"]
[EventDate "2024.09.12"]
[EventType "team-tourn"]
[EventCountry "SVK"]
[SourceTitle "playchess.com"]
[Source "ChessBase"]
[SourceQuality "1"]
[TimeControl "5400+30"]

{[%evp 13,60,-23,-1,-17,-27,-17,-26,-37,-39,-55,-39,-113,-78,-77,-74,-83,-80,-108,-110,-153,-139,-193,-194,-221,-208,-219,-214,-221,-219,-291,-279,-315,-90,-84,-79,-511,-504,-518,-514,-523,-511,-512,-522,-782,-821,-792,-821,-5447,-5231]} 1. d4 {[%emt 0:00:51]} Nf6 {[%emt 0:00:18]} 2. c4 {[%emt 0:00:29]} e6 {[%emt 0:00:18]} 3. Nc3 {[%emt 0:00:10]} Bb4 {[%emt 0:00:53]} 4. a3 {[%emt 0:06:24]} Bxc3+ {[%emt 0:00:20]} 5. bxc3 {[%emt 0:00:07]} Nc6 {[%emt 0:05:51][%cal Bb8c6,Bc6a5,Ba5b3,Bb3d4][%mdl 32]} 6. f3 {[%emt 0:04:48]} b6 {[%emt 0:00:44]} 7. e4 {[%emt 0:00:08]} Ba6 {[%emt 0:06:13]} 8. Bd3 {[%emt 0:01:09]} Na5 {[%emt 0:04:28]} 9. Qe2 {[%emt 0:00:10]} c5 {[%emt 0:07:37]} 10. Bg5 {[%emt 0:15:49]} h6 {[%emt 0:11:07]} 11. Bh4 {[%emt 0:00:09]} cxd4 {[%emt 0:10:16]} 12. Nh3 {[%emt 0:19:01]} (12. cxd4 $15 Rc8 13. Qd1) 12... Qc7 {[%emt 0:11:09]} 13. cxd4 {[%emt 0:05:52]} Nb3 {[%emt 0:04:10]} (13... Nxc4 $6 14. O-O $14) 14. Rd1 {[%emt 0:01:12]} Nxd4 {[%emt 0:01:20] Black is more active. Excellent horsemanship.} 15. Qb2 {[%emt 0:00:33]} Qe5 {[%emt 0:10:50][%cal Od4f3]} 16. Qf2 {[%emt 0:08:26]} Qa5+ {[%emt 0:02:34]} 17. Kf1 {[%emt 0:00:08]} (17. Qd2 $17 {keeps fighting.}) 17... e5 {[%emt 0:00:50]} 18. g4 {[%emt 0:11:51]} g5 {[%emt 0:01:34]} 19. Bg3 {[%emt 0:00:19]} d6 {[%emt 0:03:29][%cal Oa8c8]} (19... Qxa3 $2 20. Bxe5 Ne6 21. Bxf6 $18) 20. Kg2 {[%emt 0:01:50]} Qxa3 {[%emt 0:01:28]} 21. Ng1 {[%emt 0:00:27]} h5 {[%emt 0:02:04]} 22. Ne2 {[%emt 0:03:06]} h4 $2 {[%emt 0:03:30]} (22... hxg4 23. Nxd4 exd4 24. Qxd4 Qa2+ (24... gxf3+ 25. Kxf3 Rh6 26. Ra1 $14) 25. Kg1 gxf3 26. Bf2 $11) (22... Ne6 $19 {and Black stays clearly on top.} 23. h3 h4) 23. Nxd4 $17 {[%emt 0:00:33][%cal Od4f5] Hoping for Nf5!.} hxg3 {[%emt 0:00:34]} 24. hxg3 $2 {[%emt 0:09:16][%mdl 8192]} (24. Kxg3 $17 Qc5 (24... exd4 25. Qxd4 Rh6 26. Ra1 $15) 25. Nf5) 24... Rxh1 $19 {[%emt 0:00:56]} 25. Kxh1 {[%emt 0:00:10]} exd4 {[%emt 0:02:09]} 26. Qxd4 {[%emt 0:00:09]} Nd7 {[%emt 0:04:45]} 27. Qh8+ {[%emt 0:03:15]} Nf8 {[%emt 0:00:30][%cal Oa6c4] and ...Bxc4! would now be decisive} 28. e5 {[%emt 0:01:48]} Qb3 {[%emt 0:02:16][%csl LRc4,LRd1]} 29. Rd2 {[%emt 0:03:08]} Qc3 {[%emt 0:00:36]} 30. Be4 {[%emt 0:00:41]} Qc1+ {[%emt 0:00:14]} ({And not} 30... Qxe5 31. Qxe5+ dxe5 32. Bxa8 $11) 0-1

[Event "Slovakian ECo-C Extraliga 2024-25"]
[Site "Slovakia"]
[Date "2024.11.24"]
[Round "2.4"]
[White "Simacek, Pavel"]
[Black "Berczes, David"]
[Result "0-1"]
[Annotator "TA"]
[ECO "E46"]
[WhiteElo "2452"]
[BlackElo "2413"]
[PlyCount "59"]
[EventDate "2024.09.12"]
[EventType "team-tourn"]
[EventCountry "SVK"]
[SourceTitle "playchess.com"]
[Source "ChessBase"]
[SourceQuality "1"]
[TimeControl "5400+30"]

{[%evp 14,59,-8,-10,-8,-4,0,0,10,-71,-79,-62,-65,-74,-71,-113,-120,-177,-208,-202,-202,-213,-172,-150,-180,-536,-550,-605,-598,-885,-910,-954,-934,-1072,-1086,-1122,-1101,-1046,-1005,-2232,-458,-425,-415,-599,-573,-1275,-1222,-29997]} 1. d4 {[%emt 0:00:05]} Nf6 {[%emt 0:00:47]} 2. c4 {[%emt 0:00:21]} e6 {[%emt 0:00:06]} 3. Nc3 {[%emt 0:00:12]} Bb4 {[%emt 0:01:45]} 4. e3 {[%emt 0:01:24]} O-O {[%emt 0:00:33]} 5. Nge2 {[%emt 0:00:32]} d5 {[%emt 0:01:08]} 6. a3 {[%emt 0:00:52]} Be7 {[%emt 0:00:06]} 7. Ng3 {[%emt 0:00:50]} c5 {[%emt 0:00:25]} 8. dxc5 {[%emt 0:00:43]} dxc4 {[%emt 0:02:59]} 9. Qc2 {[%emt 0:02:30]} b5 {[%emt 0:11:19]} 10. cxb6 {[%emt 0:06:15]} Bb7 {[%emt 0:00:41] The position is equal.} 11. Bxc4 {[%emt 0:21:17]} (11. bxa7 $11 Nbd7 12. e4) 11... Bxg2 $17 {[%emt 0:12:53]} 12. Rg1 {[%emt 0:00:12]} Bb7 {[%emt 0:12:16]} 13. e4 {[%emt 0:13:16]} Nc6 {[%emt 0:19:03] Hoping for ...Rc8.} 14. Be3 {[%emt 0:00:33]} Ng4 {[%emt 0:18:52]} 15. Nh5 {[%emt 0:07:38]} (15. Qe2 $17 {was necessary.} Nxe3 (15... Nxh2 $2 16. Rd1 $18) 16. Qxe3 Qxb6 (16... axb6 17. Rd1 $11) 17. Qxb6 axb6 18. O-O-O) 15... Nxe3 $19 {[%emt 0:00:42]} (15... Nxh2 $2 16. Rxg7+ Kh8 17. e5 Nf3+ 18. Kf1 Nh2+ 19. Ke2 Nd4+ 20. Bxd4 Bf3+ 21. Ke1 $18) 16. Rxg7+ {[%emt 0:04:36]} Kh8 {[%emt 0:00:08]} 17. fxe3 {[%emt 0:00:04][%cal Oe4e5] And now e5! would win.} Ne5 $36 {[%emt 0:05:06][%mdl 2048] Black is on the roll.} (17... axb6 $2 {loses.} 18. e5 Bh4+ 19. Ke2 $18) 18. Qg2 {[%emt 0:11:40][%cal Og7h7] [#] White wants to mate with Rxh7+!} Ng6 $1 {[%emt 0:04:07] ...Bh4+ is the strong threat. Chess con chili.} ({Weaker is} 18... Nxc4 19. Rxh7+ Kxh7 20. Qg7#) 19. Qh3 {[%emt 0:08:51]} (19. bxa7 Rxa7 20. Bb5) 19... Bh4+ {[%emt 0:00:07]} (19... axb6 $2 20. Rd1 Bh4+ 21. Kf1 $19) 20. Ke2 {[%emt 0:01:29]} Qxb6 {[%emt 0:04:25]} 21. b3 {[%emt 0:04:55]} Qa5 {[%emt 0:00:51]} 22. Nb5 {[%emt 0:00:09]} Rad8 {[%emt 0:00:56]} 23. b4 {[%emt 0:03:54]} Qa4 {[%emt 0:00:04]} 24. Rc1 {[%emt 0:00:06] Wards off Qc2+} Ba6 {[%emt 0:02:09] This pair of bishops is nice.} 25. Rxg6 {[%emt 0:09:32]} fxg6 {[%emt 0:00:00]} 26. Nf4 {[%emt 0:00:57]} Rxf4 {[%emt 0:01:27]} (26... Bxb5 $142 27. Qxh4 Bxc4+ (27... Qxa3 $2 28. Nxg6+ Kg7 29. Nf4 $19) 28. Kf3 e5 (28... Qxa3 $2 29. Qe1 $19)) 27. exf4 {[%emt 0:00:10] [#] Qc3+ would kill now.} Bxb5 {[%emt 0:00:27]} 28. Qxh4 {[%emt 0:00:54]} (28. Qxe6 $142 Bxc4+ (28... Qxa3 29. Qe5+) (28... Re8 $2 29. Qd5 $19) 29. Qxc4) 28... Bxc4+ {[%emt 0:00:03]} 29. Kf2 {[%emt 0:00:23]} Rd2+ {[%emt 0:00:26]} 30. Ke3 {[%emt 0:00:30] White got outplayed after the opening.   Weighted Error Value: White=1.13/Black=0.15 (very precise) .  Mistake:       	White=4     	---        Inaccurate:     	White=4     	---        OK:         	White=5     	Black=5      Best:        	White=1     	Black=4      Strong:       	---       	Black=1} 0-1

[Event "Slovakian ECo-C Extraliga 2024-25"]
[Site "Slovakia"]
[Date "2024.11.24"]
[Round "2.4"]
[White "Chovan, Milan"]
[Black "Baidetskyi, Valentin"]
[Result "0-1"]
[Annotator "RC"]
[ECO "E32"]
[WhiteElo "2349"]
[BlackElo "2512"]
[PlyCount "44"]
[EventDate "2024.09.12"]
[EventType "team-tourn"]
[EventCountry "SVK"]
[SourceTitle "playchess.com"]
[Source "ChessBase"]
[SourceQuality "1"]
[TimeControl "5400+30"]

1. d4 {[%emt 0:00:03]} Nf6 {[%emt 0:00:02]} 2. c4 {[%emt 0:00:09]} e6 {[%emt 0:00:03]} 3. Nc3 {[%emt 0:00:06]} Bb4 {[%emt 0:00:03]} 4. Qc2 {[%emt 0:00:09]} h6 {[%emt 0:00:06]} 5. a3 {[%emt 0:05:54]} Bxc3+ {[%emt 0:00:50]} 6. Qxc3 {[%emt 0:00:10]} b6 {[%emt 0:00:03]} 7. f3 {[%emt 0:12:16]} d5 {[%emt 0:01:19]} 8. e3 {[%emt 0:07:08]} Ba6 {[%emt 0:05:08]} 9. b3 {[%emt 0:03:26]} O-O {[%emt 0:00:53]} 10. Bd3 {[%emt 0:00:27]} Nbd7 {[%emt 0:06:13]} 11. Ne2 {[%emt 0:02:03]} c5 {[%emt 0:01:16]} 12. O-O {[%emt 0:09:04]} Rc8 {[%emt 0:03:43]} 13. a4 {[%emt 0:06:05]} dxc4 {[%emt 0:05:49]} 14. bxc4 {[%emt 0:02:20]} cxd4 {[%emt 0:00:41]} 15. exd4 {[%emt 0:00:11]} e5 {[%emt 0:01:15]} 16. dxe5 {[%emt 0:04:16]} Nxe5 {[%emt 0:00:11]} 17. Qxe5 {[%emt 0:03:06]} Qxd3 {[%emt 0:02:51]} 18. Nf4 {[%emt 0:02:55]} Qxc4 {[%emt 0:00:30]} 19. Rd1 {[%emt 0:00:41]} Rfe8 {[%emt 0:28:46]} 20. Qd6 {[%emt 0:02:41]} Rc6 {[%emt 0:12:45]} 21. Qd2 {[%emt 0:00:12]} Qc5+ {[%emt 0:04:53]} 22. Kh1 {[%emt 0:03:11]} Rd6 {[%emt 0:00:17]} 0-1

[Event "Slovakian ECo-C Extraliga 2024-25"]
[Site "Slovakia"]
[Date "2024.11.24"]
[Round "2.4"]
[White "Roubalik, Jakub"]
[Black "Butkiewicz, Lukasz"]
[Result "1/2-1/2"]
[Annotator "RC"]
[ECO "E29"]
[WhiteElo "2315"]
[BlackElo "2344"]
[PlyCount "50"]
[EventDate "2024.09.12"]
[EventType "team-tourn"]
[EventCountry "SVK"]
[SourceTitle "playchess.com"]
[Source "ChessBase"]
[SourceQuality "1"]
[TimeControl "5400+30"]

1. d4 {[%emt 0:00:03]} Nf6 {[%emt 0:00:06]} 2. c4 {[%emt 0:00:08]} e6 {[%emt 0:00:05]} 3. Nc3 {[%emt 0:00:21]} Bb4 {[%emt 0:00:09]} 4. e3 {[%emt 0:00:38]} O-O {[%emt 0:00:10]} 5. Bd3 {[%emt 0:00:40]} c5 {[%emt 0:01:10]} 6. a3 {[%emt 0:03:12]} Bxc3+ {[%emt 0:01:50]} 7. bxc3 {[%emt 0:00:08]} Nc6 {[%emt 0:03:31]} 8. Ne2 {[%emt 0:00:19]} d6 {[%emt 0:02:51]} 9. e4 {[%emt 0:00:44]} e5 {[%emt 0:03:24]} 10. d5 {[%emt 0:01:18]} Ne7 {[%emt 0:02:41]} 11. O-O {[%emt 0:03:40]} Ng6 {[%emt 0:04:17]} 12. f3 {[%emt 0:01:28]} h6 {[%emt 0:04:17]} 13. Be3 {[%emt 0:08:14]} Nh7 {[%emt 0:03:06]} 14. Qd2 {[%emt 0:06:24]} Qe7 {[%emt 0:14:51]} 15. Ng3 {[%emt 0:04:35]} Nh4 {[%emt 0:01:32]} 16. Rae1 {[%emt 0:04:35]} Ng6 {[%emt 0:19:45]} 17. Nf5 {[%emt 0:02:52]} Qf6 {[%emt 0:00:52]} 18. g3 {[%emt 0:04:14]} Re8 {[%emt 0:02:06]} 19. h4 {[%emt 0:23:55]} Ne7 {[%emt 0:01:41]} 20. Nxe7+ {[%emt 0:02:42]} Qxe7 {[%emt 0:00:19]} 21. Qh2 {[%emt 0:01:33]} Bd7 {[%emt 0:02:06]} 22. f4 {[%emt 0:11:33]} Nf6 {[%emt 0:10:30]} 23. f5 {[%emt 0:03:01]} Rab8 {[%emt 0:01:41]} 24. Qe2 {[%emt 0:02:52]} a6 {[%emt 0:04:08]} 25. g4 {[%emt 0:01:05]} Nh7 {[%emt 0:00:58]} 1/2-1/2

[Event "Slovakian ECo-C Extraliga 2024-25"]
[Site "Slovakia"]
[Date "2024.11.24"]
[Round "2.4"]
[White "Karas, Marek"]
[Black "Piesik, Piotr"]
[Result "0-1"]
[Annotator "RC"]
[ECO "B17"]
[WhiteElo "2161"]
[BlackElo "2421"]
[PlyCount "78"]
[EventDate "2024.09.12"]
[EventType "team-tourn"]
[EventCountry "SVK"]
[SourceTitle "playchess.com"]
[Source "ChessBase"]
[SourceQuality "1"]
[TimeControl "5400+30"]

1. e4 {[%emt 0:00:01]} c6 {[%emt 0:01:06]} 2. d4 {[%emt 0:00:11]} d5 {[%emt 0:00:05]} 3. Nc3 {[%emt 0:00:03]} dxe4 {[%emt 0:00:26]} 4. Nxe4 {[%emt 0:00:03]} Nd7 {[%emt 0:00:28]} 5. Ng5 {[%emt 0:00:15]} Ngf6 {[%emt 0:00:19]} 6. Bd3 {[%emt 0:00:28]} e6 {[%emt 0:00:19]} 7. N1f3 {[%emt 0:00:44]} Bd6 {[%emt 0:00:34]} 8. Qe2 {[%emt 0:00:14]} h6 {[%emt 0:00:22]} 9. Ne4 {[%emt 0:00:06]} Nxe4 {[%emt 0:00:07]} 10. Qxe4 {[%emt 0:00:07]} Qc7 {[%emt 0:00:31]} 11. Qg4 {[%emt 0:02:12]} Kf8 {[%emt 0:00:18]} 12. O-O {[%emt 0:01:48]} b6 {[%emt 0:08:49]} 13. b3 {[%emt 0:01:21]} Bb7 {[%emt 0:01:20]} 14. Bb2 {[%emt 0:00:47]} Nf6 {[%emt 0:02:14]} 15. Qh3 {[%emt 0:00:21]} Nd5 {[%emt 0:05:46]} 16. Qg4 {[%emt 0:07:53]} Nf4 {[%emt 0:14:28]} 17. Ne5 {[%emt 0:05:43]} g5 {[%emt 0:07:23]} 18. Rfe1 {[%emt 0:05:53]} Rg8 {[%emt 0:06:08]} 19. Bf1 {[%emt 0:04:24]} Rd8 {[%emt 0:12:22]} 20. Nc4 {[%emt 0:02:21]} h5 {[%emt 0:04:59]} 21. Qd1 {[%emt 0:00:58]} Be7 {[%emt 0:07:39]} 22. Qc1 {[%emt 0:06:30]} c5 {[%emt 0:04:19]} 23. c3 {[%emt 0:11:35]} g4 {[%emt 0:05:57]} 24. Qc2 {[%emt 0:03:31]} Nh3+ {[%emt 0:07:01]} 25. Kh1 {[%emt 0:00:02]} Qf4 {[%emt 0:00:09]} 26. Re2 {[%emt 0:02:42]} Bh4 {[%emt 0:01:43]} 27. dxc5 {[%emt 0:02:48]} Nxf2+ {[%emt 0:02:13]} 28. Rxf2 {[%emt 0:00:26]} Qxf2 {[%emt 0:01:38]} 29. Qxf2 {[%emt 0:01:27]} Bxf2 {[%emt 0:00:05]} 30. cxb6 {[%emt 0:00:41]} axb6 {[%emt 0:00:07]} 31. Ba3+ {[%emt 0:00:58]} Kg7 {[%emt 0:00:07]} 32. Nd6 {[%emt 0:00:59]} Bc6 {[%emt 0:00:44]} 33. Be2 {[%emt 0:01:28]} g3 {[%emt 0:03:40]} 34. Bf3 {[%emt 0:04:52]} Bxf3 {[%emt 0:00:36]} 35. gxf3 {[%emt 0:00:02]} gxh2 {[%emt 0:01:13]} 36. Ne4 {[%emt 0:00:52]} Be3 {[%emt 0:00:58]} 37. Be7 {[%emt 0:02:04]} Rd3 {[%emt 0:00:36]} 38. Bf6+ {[%emt 0:00:25]} Kh6 {[%emt 0:00:34]} 39. Kxh2 {[%emt 0:00:09]} Bf4+ {[%emt 0:00:07]} 0-1